[Event "IIFL Wealth 4th Mumbai Open"]
[Site "Mumbai"]
[Date "2019.01.01"]
[Round "3"]
[White "Dhanvij Ansh"]
[Black "Bhagyashree, Patil"]
[Result "1-0"]
[ECO "D37"]
[WhiteElo "1523"]
[BlackElo "1758"]
[Annotator "NA RC"]
[PlyCount "129"]
[EventDate "2018.12.30"]
[EventType "swiss"]
[EventCountry "IND"]
[SourceTitle "playchess.com"]
[Source "ChessBase"]
[SourceQuality "1"]
[TimeControl "40/5400+30:1800+30"]

1. d4 {[%emt 0:00:00]} d5 {[%emt 0:00:00]} 2. c4 {[%emt 0:00:05]} e6 {[%emt 0:00:00]} 3. Nc3 {[%emt 0:00:07]} Nf6 {[%emt 0:00:00]} 4. Nf3 {[%emt 0:00:09]} Be7 {[%emt 0:05:38]} 5. Bf4 {[%emt 0:01:08]} O-O {[%emt 0:01:37]} 6. h3 {[%emt 0:00:33]} b6 {[%emt 0:02:02]} 7. cxd5 {[%emt 0:02:18]} Nxd5 {[%emt 0:06:39]} 8. Bh2 {[%emt 0:01:37]} Bb7 {[%emt 0:04:50]} 9. e3 {[%emt 0:02:15]} c5 {[%emt 0:09:41]} 10. Bd3 {[%emt 0:06:10]} cxd4 {[%emt 0:04:00]} 11. exd4 {[%emt 0:00:25]} Nd7 {[%emt 0:00:41]} 12. O-O {[%emt 0:00:55]} N7f6 {[%emt 0:05:58]} 13. Re1 {[%emt 0:02:48]} Nb4 {[%emt 0:03:12]} 14. Ne5 {[%emt 0:05:38]} Nxd3 {[%emt 0:05:15]} 15. Qxd3 {[%emt 0:00:24]} Nd7 {[%emt 0:00:38]} 16. Nxd7 {[%emt 0:03:41]} Qxd7 {[%emt 0:00:04]} 17. Qe3 {[%emt 0:00:11]} Bd6 {[%emt 0:07:05]} 18. Be5 {[%emt 0:02:22]} Rfd8 {[%emt 0:06:21]} 19. Red1 {[%emt 0:02:27]} Bxe5 {[%emt 0:05:24]} 20. dxe5 {[%emt 0:00:11]} Qc6 {[%emt 0:00:03]} 21. Qg5 {[%emt 0:01:52]} Rxd1+ {[%emt 0:02:05]} 22. Rxd1 {[%emt 0:00:11]} h6 {[%emt 0:00:12]} 23. Qg4 {[%emt 0:01:42]} Rc8 {[%emt 0:04:12]} 24. f3 {[%emt 0:02:26]} b5 {[%emt 0:01:05]} 25. a3 {[%emt 0:03:24]} a5 {[%emt 0:00:28]} 26. Qd4 {[%emt 0:03:55]} Qc5 {[%emt 0:01:26]} 27. Qxc5 {[%emt 0:02:36]} Rxc5 {[%emt 0:00:13]} 28. Rd8+ {[%emt 0:00:05]} Kh7 {[%emt 0:00:11]} 29. Rd7 {[%emt 0:00:09]} Bc6 {[%emt 0:03:09]} 30. Rxf7 {[%emt 0:01:15]} b4 {[%emt 0:00:39]} 31. axb4 {[%emt 0:00:28]} axb4 {[%emt 0:00:02]} 32. Na2 {[%emt 0:00:12]} b3 {[%emt 0:00:51]} 33. Nb4 {[%emt 0:00:21]} Bb5 {[%emt 0:00:59]} 34. f4 {[%emt 0:03:25]} Rc1+ {[%emt 0:01:35]} 35. Kh2 {[%emt 0:02:16]} Rb1 {[%emt 0:00:36]} 36. Rb7 {[%emt 0:01:46]} Bc4 {[%emt 0:01:50]} 37. Rc7 {[%emt 0:03:32]} Rxb2 {[%emt 0:03:08]} 38. Rxc4 {[%emt 0:02:16]} Rxg2+ {[%emt 0:00:03]} 39. Kxg2 {[%emt 0:00:12]} b2 {[%emt 0:00:01]} 40. Nd3 {[%emt 0:00:00]} b1=Q {[%emt 0:00:00]} 41. Nf2 {[%emt 0:00:21]} Kg6 {[%emt 0:01:20]} 42. Rc3 {[%emt 0:01:43]} Kf5 {[%emt 0:00:23]} 43. Rf3 {[%emt 0:00:57]} Qa1 {[%emt 0:03:49]} 44. Ng4 {[%emt 0:01:47]} Qa2+ {[%emt 0:02:03]} 45. Kg3 {[%emt 0:02:31]} Qb1 {[%emt 0:00:34]} 46. Kg2 {[%emt 0:00:48]} Ke4 {[%emt 0:01:19]} 47. Nf2+ {[%emt 0:00:40]} Kd4 {[%emt 0:00:51]} 48. Rd3+ {[%emt 0:00:53]} Kc4 49. h4 {[%emt 0:06:14]} Qc1 {[%emt 0:01:23]} 50. Kf3 {[%emt 0:00:48]} Qg1 {[%emt 0:00:23]} 51. Rd6 {[%emt 0:00:24]} Qh2 {[%emt 0:01:41]} 52. Rxe6 {[%emt 0:03:00]} Qxh4 {[%emt 0:00:09]} 53. Rc6+ {[%emt 0:02:02]} Kb5 {[%emt 0:00:37]} 54. Rd6 {[%emt 0:00:10]} g5 {[%emt 0:00:53]} 55. fxg5 {[%emt 0:00:19]} hxg5 {[%emt 0:00:01]} 56. Rf6 {[%emt 0:00:22]} Kc4 {[%emt 0:00:26]} 57. e6 {[%emt 0:02:03]} Qh5+ {[%emt 0:01:09]} 58. Ke3 {[%emt 0:03:35]} Qh2 {[%emt 0:02:20]} 59. Rf5 {[%emt 0:01:23]} Qg3+ {[%emt 0:01:30]} 60. Ke4 {[%emt 0:00:11]} g4 {[%emt 0:01:07]} 61. Rf4 {[%emt 0:00:51]} Kc5 {[%emt 0:01:34]} 62. e7 {[%emt 0:00:35]} Qg2+ {[%emt 0:01:32]} 63. Ke3 {[%emt 0:00:24]} Qg1 {[%emt 0:00:23]} 64. Ke2 {[%emt 0:00:23]} Qh2 {[%emt 0:01:17]} 65. Rf5+ {[%emt 0:00:11]} 1-0

[Event "IIFL Wealth 4th Mumbai Open"]
[Site "Mumbai"]
[Date "2019.01.01"]
[Round "3"]
[White "Negi Augustiya"]
[Black "Sawant, Akshay"]
[Result "1/2-1/2"]
[ECO "D43"]
[WhiteElo "1521"]
[BlackElo "1716"]
[Annotator "NA RC"]
[PlyCount "73"]
[EventDate "2018.12.30"]
[EventType "swiss"]
[EventCountry "IND"]
[SourceTitle "playchess.com"]
[Source "ChessBase"]
[SourceQuality "1"]
[TimeControl "40/5400+30:1800+30"]

1. d4 {[%emt 0:00:00]} d5 {[%emt 0:00:00]} 2. Nf3 {[%emt 0:00:00]} Nf6 {[%emt 0:00:33]} 3. c4 {[%emt 0:00:06]} e6 {[%emt 0:00:03]} 4. Nc3 {[%emt 0:00:14]} c6 {[%emt 0:00:11]} 5. Bf4 {[%emt 0:00:17]} Be7 {[%emt 0:01:08]} 6. e3 {[%emt 0:00:27]} Nbd7 {[%emt 0:01:33]} 7. cxd5 {[%emt 0:00:11]} exd5 {[%emt 0:00:30]} 8. Bd3 {[%emt 0:00:15]} O-O {[%emt 0:04:03]} 9. O-O {[%emt 0:00:07]} h6 {[%emt 0:02:37]} 10. h3 {[%emt 0:00:29]} Re8 {[%emt 0:06:48]} 11. Qc2 {[%emt 0:00:17]} Nf8 {[%emt 0:02:12]} 12. Rab1 {[%emt 0:00:22]} Bd6 {[%emt 0:13:32]} 13. Bxd6 {[%emt 0:00:15]} Qxd6 {[%emt 0:00:15]} 14. b4 {[%emt 0:03:12]} b6 {[%emt 0:13:05]} 15. Rfc1 {[%emt 0:02:35]} Bb7 {[%emt 0:08:10]} 16. a4 {[%emt 0:26:43]} Rac8 {[%emt 0:14:29]} 17. a5 {[%emt 0:02:44]} b5 {[%emt 0:00:27]} 18. Nd2 {[%emt 0:20:27]} Ba8 {[%emt 0:03:00]} 19. Nf3 {[%emt 0:00:00]} Bb7 {[%emt 0:00:00]} 20. Nd2 {[%emt 0:01:00]} Ba8 {[%emt 0:01:00]} 21. Na2 {[%emt 0:08:24]} Rcd8 {[%emt 0:03:08]} 22. Nb3 {[%emt 0:01:23]} Ne6 {[%emt 0:04:00]} 23. Nc5 {[%emt 0:09:35]} Nf8 {[%emt 0:00:00]} 24. Nc3 {[%emt 0:00:00]} Ne6 {[%emt 0:00:00]} 25. Na2 {[%emt 0:01:00]} Ng5 {[%emt 0:02:32]} 26. Nc3 {[%emt 0:01:22]} Re7 {[%emt 0:01:23]} 27. Ne2 {[%emt 0:01:06]} Rde8 {[%emt 0:02:08]} 28. Ng3 {[%emt 0:01:30]} Rd8 {[%emt 0:00:00]} 29. Ne2 {[%emt 0:00:00]} Rde8 {[%emt 0:01:00]} 30. Ng3 {[%emt 0:01:00]} Qd8 {[%emt 0:04:38]} 31. Nf5 {[%emt 0:02:59]} Rc7 {[%emt 0:01:11]} 32. Na6 {[%emt 0:00:49]} Rd7 {[%emt 0:01:34]} 33. Nc5 {[%emt 0:00:35]} Rc7 {[%emt 0:00:06]} 34. Na6 {[%emt 0:00:22]} Rd7 {[%emt 0:00:12]} 35. Nc5 {[%emt 0:00:07]} Rc7 {[%emt 0:00:03]} 36. Na6 {[%emt 0:00:05]} Rd7 {[%emt 0:00:03]} 37. Nc5 {[%emt 0:00:06]} 1/2-1/2

[Event "IIFL Wealth 4th Mumbai Open"]
[Site "Mumbai"]
[Date "2019.01.01"]
[Round "3"]
[White "Pednekar Ayush"]
[Black "Joglekar, Abhijit"]
[Result "0-1"]
[ECO "A45"]
[WhiteElo "1501"]
[BlackElo "1692"]
[Annotator "NA RC"]
[PlyCount "80"]
[EventDate "2018.12.30"]
[EventType "swiss"]
[EventCountry "IND"]
[SourceTitle "playchess.com"]
[Source "ChessBase"]
[SourceQuality "1"]
[TimeControl "40/5400+30:1800+30"]

1. d4 Nf6 2. Bg5 h6 3. Bxf6 exf6 4. c4 d5 5. e3 c6 6. Nc3 dxc4 7. Bxc4 Bd6 8. Nge2 O-O 9. Qc2 f5 10. g3 Qf6 11. Bd3 Be6 12. Nf4 Bxf4 13. gxf4 Nd7 14. Na4 Rfe8 15. h4 Bd5 16. Rh3 Be4 17. Bxe4 Rxe4 18. Nc3 Ree8 19. O-O-O Nb6 20. Rg1 Kh7 21. Kb1 Nd5 22. Nxd5 cxd5 23. Qc5 Qe6 24. Rhg3 g6 25. h5 b6 26. hxg6+ fxg6 27. Qc2 Rac8 28. Qd3 Rc6 29. a3 Qc8 30. Rd1 Rc4 31. Rgg1 b5 32. Rh1 Qd7 33. Qb3 a5 34. Qd3 a4 35. Rd2 b4 36. axb4 Qb5 37. Qa3 Rxb4 38. Ka1 Kg7 39. Rc1 Qb6 40. Rc8 g5 0-1

[Event "IIFL Wealth 4th Mumbai Open"]
[Site "Mumbai"]
[Date "2019.01.01"]
[Round "3"]
[White "Marium Fatima"]
[Black "Mokashi, Rohit"]
[Result "0-1"]
[ECO "D02"]
[WhiteElo "1494"]
[BlackElo "1641"]
[Annotator "NA RC"]
[PlyCount "138"]
[EventDate "2018.12.30"]
[EventType "swiss"]
[EventCountry "IND"]
[SourceTitle "playchess.com"]
[Source "ChessBase"]
[SourceQuality "1"]
[TimeControl "40/5400+30:1800+30"]

1. d4 {[%emt 0:00:00]} d5 {[%emt 0:00:00]} 2. Nf3 {[%emt 0:00:00]} Nf6 {[%emt 0:00:00]} 3. g3 {[%emt 0:00:00]} Bf5 {[%emt 0:02:31]} 4. Bg2 {[%emt 0:00:00]} e6 {[%emt 0:00:13]} 5. O-O {[%emt 0:00:03]} c5 {[%emt 0:00:14]} 6. b3 {[%emt 0:00:14]} Nc6 {[%emt 0:01:01]} 7. Bb2 {[%emt 0:00:12]} Be7 {[%emt 0:01:15]} 8. Nbd2 {[%emt 0:00:07]} h6 {[%emt 0:00:51]} 9. c4 {[%emt 0:00:26]} O-O {[%emt 0:01:45]} 10. Rc1 {[%emt 0:02:16]} cxd4 {[%emt 0:03:07]} 11. Nxd4 {[%emt 0:05:54]} Nxd4 {[%emt 0:06:49]} 12. Bxd4 {[%emt 0:00:10]} Ba3 {[%emt 0:00:47]} 13. Ra1 {[%emt 0:00:23]} Rc8 {[%emt 0:16:35]} 14. Nb1 {[%emt 0:08:51]} Be7 {[%emt 0:02:44]} 15. Nd2 {[%emt 0:02:40]} Re8 {[%emt 0:03:33]} 16. Bb2 {[%emt 0:01:43]} Qb6 {[%emt 0:02:38]} 17. Rc1 {[%emt 0:02:24]} d4 {[%emt 0:05:52]} 18. Nf3 {[%emt 0:03:32]} Rcd8 {[%emt 0:07:09]} 19. Bxd4 {[%emt 0:18:23]} Qa6 {[%emt 0:01:06]} 20. Qe1 {[%emt 0:08:28]} Qxa2 {[%emt 0:01:48]} 21. Be3 {[%emt 0:14:14]} Ng4 {[%emt 0:13:40]} 22. Nd4 {[%emt 0:15:59]} Nxe3 {[%emt 0:03:38]} 23. fxe3 {[%emt 0:00:03]} Bc5 {[%emt 0:04:42]} 24. Qc3 {[%emt 0:04:40]} Bxd4 {[%emt 0:11:24]} 25. exd4 {[%emt 0:00:02]} Qxe2 {[%emt 0:01:34]} 26. Bxb7 {[%emt 0:00:33]} Qd3 {[%emt 0:00:37]} 27. d5 {[%emt 0:00:45]} Re7 {[%emt 0:02:19]} 28. Bc6 {[%emt 0:01:32]} Rc7 {[%emt 0:00:17]} 29. Qxd3 {[%emt 0:04:01]} Bxd3 {[%emt 0:00:02]} 30. Rfd1 {[%emt 0:00:16]} Be4 31. Ra1 {[%emt 0:01:32]} Bc2 {[%emt 0:02:25]} 32. Rdc1 {[%emt 0:02:51]} exd5 {[%emt 0:01:35]} 33. Bxd5 {[%emt 0:03:18]} Bxb3 {[%emt 0:00:12]} 34. Ra3 {[%emt 0:00:17]} Rxd5 {[%emt 0:00:35]} 35. Rxb3 {[%emt 0:00:02]} Rdc5 {[%emt 0:00:21]} 36. Rb8+ {[%emt 0:00:38]} Kh7 {[%emt 0:00:43]} 37. Rb4 {[%emt 0:00:08]} Kg6 {[%emt 0:01:41]} 38. Kf2 {[%emt 0:00:30]} Kg5 {[%emt 0:00:09]} 39. Rc2 {[%emt 0:00:39]} h5 {[%emt 0:00:24]} 40. Ra4 {[%emt 0:00:00]} h4 {[%emt 0:00:00]} 41. Kg2 {[%emt 0:01:09]} hxg3 {[%emt 0:00:47]} 42. hxg3 {[%emt 0:00:08]} Kg4 {[%emt 0:00:39]} 43. Rc3 {[%emt 0:00:28]} g5 {[%emt 0:01:22]} 44. Rc2 {[%emt 0:00:39]} f5 {[%emt 0:00:24]} 45. Rc3 {[%emt 0:00:25]} a5 {[%emt 0:07:11]} 46. Rc2 {[%emt 0:00:33]} Rd7 {[%emt 0:00:31]} 47. Rca2 {[%emt 0:01:26]} Rd3 {[%emt 0:03:38]} 48. R4a3 {[%emt 0:00:48]} Rxa3 {[%emt 0:01:00]} 49. Rxa3 {[%emt 0:00:10]} Rxc4 {[%emt 0:00:06]} 50. Rxa5 {[%emt 0:00:16]} Rc2+ {[%emt 0:00:37]} 51. Kf1 {[%emt 0:00:48]} Rc3 {[%emt 0:00:40]} 52. Kf2 {[%emt 0:00:40]} Rf3+ {[%emt 0:00:06]} 53. Kg2 {[%emt 0:00:34]} Rxg3+ {[%emt 0:00:11]} 54. Kf2 {[%emt 0:00:05]} Rf3+ {[%emt 0:00:27]} 55. Kg2 {[%emt 0:00:13]} Rb3 {[%emt 0:00:24]} 56. Ra2 {[%emt 0:00:21]} f4 {[%emt 0:01:24]} 57. Rf2 {[%emt 0:00:38]} Kf5 {[%emt 0:01:31]} 58. Ra2 {[%emt 0:00:10]} g4 {[%emt 0:01:58]} 59. Rf2 {[%emt 0:00:48]} Ke4 {[%emt 0:00:42]} 60. Re2+ {[%emt 0:00:16]} Kd4 {[%emt 0:00:26]} 61. Rf2 {[%emt 0:00:12]} Ke3 {[%emt 0:00:35]} 62. Ra2 {[%emt 0:01:01]} Rd3 {[%emt 0:00:16]} 63. Ra1 {[%emt 0:00:27]} Rd2+ {[%emt 0:00:49]} 64. Kf1 {[%emt 0:00:21]} f3 {[%emt 0:00:56]} 65. Ra3+ {[%emt 0:00:24]} Kf4 {[%emt 0:00:16]} 66. Ra1 {[%emt 0:01:05]} Kg3 {[%emt 0:00:15]} 67. Kg1 {[%emt 0:00:04]} Rg2+ {[%emt 0:00:10]} 68. Kh1 {[%emt 0:00:34]} Rh2+ {[%emt 0:00:07]} 69. Kg1 {[%emt 0:00:09]} f2+ {[%emt 0:00:06]} 0-1

[Event "IIFL Wealth 4th Mumbai Open"]
[Site "Mumbai"]
[Date "2019.01.01"]
[Round "3"]
[White "Aditya, Ramanathan"]
[Black "Nayanikaa Muralidharan"]
[Result "1/2-1/2"]
[ECO "C55"]
[WhiteElo "1493"]
[BlackElo "1539"]
[Annotator "NA RC"]
[PlyCount "82"]
[EventDate "2018.12.30"]
[EventType "swiss"]
[EventCountry "IND"]
[SourceTitle "playchess.com"]
[Source "ChessBase"]
[SourceQuality "1"]
[TimeControl "40/5400+30:1800+30"]

1. e4 {[%emt 0:00:00]} e5 {[%emt 0:00:24]} 2. Nf3 {[%emt 0:00:00]} Nc6 {[%emt 0:00:05]} 3. d4 {[%emt 0:00:00]} exd4 {[%emt 0:00:08]} 4. Bc4 {[%emt 0:00:00]} Nf6 {[%emt 0:00:12]} 5. e5 {[%emt 0:00:00]} d5 {[%emt 0:00:13]} 6. Bb5 {[%emt 0:00:08]} Ne4 {[%emt 0:00:08]} 7. Nxd4 {[%emt 0:00:14]} Bd7 {[%emt 0:00:04]} 8. Bxc6 {[%emt 0:00:13]} bxc6 {[%emt 0:00:06]} 9. O-O {[%emt 0:00:14]} Bc5 {[%emt 0:00:25]} 10. Be3 {[%emt 0:00:11]} Qe7 {[%emt 0:00:10]} 11. f3 {[%emt 0:00:42]} Ng5 {[%emt 0:00:17]} 12. f4 {[%emt 0:00:25]} Ne6 {[%emt 0:00:15]} 13. f5 {[%emt 0:02:24]} Nxd4 {[%emt 0:02:22]} 14. Bxd4 {[%emt 0:00:06]} Bxd4+ {[%emt 0:00:40]} 15. Qxd4 {[%emt 0:00:10]} Qg5 {[%emt 0:02:03]} 16. Qd3 {[%emt 0:07:01]} Rb8 {[%emt 0:02:11]} 17. Nd2 {[%emt 0:04:15]} O-O {[%emt 0:09:50]} 18. Nb3 {[%emt 0:09:48]} Rb4 {[%emt 0:07:46]} 19. e6 {[%emt 0:02:34]} fxe6 {[%emt 0:12:49]} 20. Nc5 {[%emt 0:00:13]} Qe7 {[%emt 0:00:57]} 21. Nxd7 {[%emt 0:01:42]} Qxd7 {[%emt 0:01:33]} 22. Qa3 {[%emt 0:01:45]} Rbb8 {[%emt 0:01:33]} 23. fxe6 {[%emt 0:00:42]} Qxe6 {[%emt 0:02:10]} 24. Qxa7 {[%emt 0:00:15]} Qg6 {[%emt 0:02:38]} 25. Qc5 {[%emt 0:03:27]} Rfe8 {[%emt 0:01:29]} 26. b3 {[%emt 0:07:56]} Re2 {[%emt 0:09:28]} 27. Rf2 {[%emt 0:00:24]} Rbe8 {[%emt 0:01:41]} 28. Raf1 {[%emt 0:00:32]} h6 {[%emt 0:02:03]} 29. a4 {[%emt 0:02:42]} Qg4 {[%emt 0:05:22]} 30. Qxc6 {[%emt 0:06:45]} Qd4 {[%emt 0:01:29]} 31. c3 {[%emt 0:04:18]} Qd3 {[%emt 0:03:55]} 32. Rxe2 {[%emt 0:08:24]} Rxe2 {[%emt 0:01:31]} 33. Qc5 {[%emt 0:01:24]} Qd2 {[%emt 0:02:29]} 34. Qf8+ {[%emt 0:00:21]} Kh7 {[%emt 0:00:06]} 35. Qf5+ {[%emt 0:00:37]} Kh8 {[%emt 0:00:45]} 36. Qf8+ {[%emt 0:00:51]} Kh7 {[%emt 0:00:10]} 37. Qf5+ {[%emt 0:00:07]} Kh8 {[%emt 0:01:10]} 38. Qf8+ {[%emt 0:00:21]} Kh7 {[%emt 0:00:10]} 39. Qf5+ {[%emt 0:00:23]} Kh8 {[%emt 0:00:30]} 40. Qf8+ {[%emt 0:00:00]} Kh7 {[%emt 0:00:00]} 41. Qf5+ {[%emt 0:00:25]} Kh8 {[%emt 0:00:57]} 1/2-1/2

[Event "IIFL Wealth 4th Mumbai Open"]
[Site "Mumbai"]
[Date "2019.01.01"]
[Round "3"]
[White "Arjun, Sidharth S"]
[Black "Sadbhav, Rautela"]
[Result "1/2-1/2"]
[ECO "D04"]
[WhiteElo "1489"]
[BlackElo "1746"]
[Annotator "NA RC"]
[PlyCount "67"]
[EventDate "2018.12.30"]
[EventType "swiss"]
[EventCountry "IND"]
[SourceTitle "playchess.com"]
[Source "ChessBase"]
[SourceQuality "1"]
[TimeControl "40/5400+30:1800+30"]

1. d4 {[%emt 0:00:27]} d5 {[%emt 0:00:00]} 2. Nf3 {[%emt 0:00:08]} Nf6 {[%emt 0:00:00]} 3. e3 {[%emt 0:00:19]} Bg4 {[%emt 0:00:01]} 4. c4 {[%emt 0:00:11]} c6 {[%emt 0:00:12]} 5. Nc3 {[%emt 0:00:08]} e6 {[%emt 0:00:58]} 6. Bd3 {[%emt 0:00:41]} Nbd7 {[%emt 0:02:05]} 7. O-O {[%emt 0:02:05]} Bd6 {[%emt 0:01:07]} 8. b3 {[%emt 0:00:35]} O-O {[%emt 0:00:28]} 9. Bb2 {[%emt 0:01:11]} Rc8 {[%emt 0:14:14]} 10. Rc1 {[%emt 0:04:36]} h6 {[%emt 0:07:22]} 11. h3 {[%emt 0:01:27]} Bh5 {[%emt 0:01:11]} 12. cxd5 {[%emt 0:06:18]} cxd5 {[%emt 0:05:22]} 13. Nb5 {[%emt 0:01:26]} Bb8 {[%emt 0:00:42]} 14. Ba3 {[%emt 0:01:26]} Re8 {[%emt 0:01:36]} 15. Rxc8 {[%emt 0:14:59]} Qxc8 {[%emt 0:00:12]} 16. Nd6 {[%emt 0:00:13]} Bxd6 {[%emt 0:00:12]} 17. Bxd6 {[%emt 0:00:04]} Qc6 {[%emt 0:03:32]} 18. Ba3 {[%emt 0:03:57]} Rc8 {[%emt 0:08:17]} 19. Qc1 {[%emt 0:04:42]} Qxc1 {[%emt 0:09:59]} 20. Rxc1 {[%emt 0:00:58]} Rxc1+ {[%emt 0:00:19]} 21. Bxc1 {[%emt 0:00:08]} Kf8 {[%emt 0:00:28]} 22. Kf1 {[%emt 0:10:15]} Ke7 {[%emt 0:00:46]} 23. Ke1 {[%emt 0:03:08]} Bg6 {[%emt 0:06:52]} 24. Bxg6 {[%emt 0:01:25]} fxg6 {[%emt 0:00:16]} 25. Ba3+ {[%emt 0:03:30]} Kd8 {[%emt 0:03:49]} 26. Ne5 Nxe5 {[%emt 0:00:22]} 27. dxe5 {[%emt 0:06:34]} Nd7 {[%emt 0:00:14]} 28. Bd6 {[%emt 0:00:45]} g5 {[%emt 0:04:07]} 29. Kd2 {[%emt 0:03:16]} Kc8 {[%emt 0:01:06]} 30. Ke1 {[%emt 0:01:35]} Kd8 {[%emt 0:00:12]} 31. Kd2 {[%emt 0:00:09]} Kc8 {[%emt 0:00:15]} 32. Ke1 {[%emt 0:00:09]} Kd8 {[%emt 0:00:12]} 33. Kd2 {[%emt 0:00:06]} Kc8 {[%emt 0:00:13]} 34. Ke1 1/2-1/2

[Event "IIFL Wealth 4th Mumbai Open"]
[Site "Mumbai"]
[Date "2019.01.01"]
[Round "3"]
[White "Ananya, Arumbakkam"]
[Black "Tejes Suresh Kumar"]
[Result "0-1"]
[ECO "C54"]
[WhiteElo "1405"]
[BlackElo "1618"]
[Annotator "NA RC"]
[PlyCount "92"]
[EventDate "2018.12.30"]
[EventType "swiss"]
[EventCountry "IND"]
[SourceTitle "playchess.com"]
[Source "ChessBase"]
[SourceQuality "1"]
[TimeControl "40/5400+30:1800+30"]

1. e4 e5 2. Nf3 Nc6 3. Bc4 Bc5 4. c3 Nf6 5. d3 O-O 6. O-O d5 7. exd5 Nxd5 8. h3 Nb6 9. Bb3 Bf5 10. Bc2 Qd7 11. b4 Bd6 12. Nh4 Be6 13. Nd2 Be7 14. Nhf3 a6 15. Ne4 Nd5 16. Bd2 f5 17. Neg5 Kh8 18. Re1 Bg8 19. a3 h6 20. Nh4 Qe8 21. c4 Nb6 22. Ngf3 g5 23. Nxe5 gxh4 24. Bxh6 Rf6 25. Bg5 Re6 26. Nxc6 Bxg5 27. Rxe6 Bxe6 28. Na5 Bf6 29. Rb1 Qg6 30. Qf3 Rg8 31. Nxb7 Nd7 32. Bd1 Bf7 33. g3 hxg3 34. Qxg3 Qh6 35. Bg4 fxg4 36. hxg4 Be6 37. f3 Be5 38. Qg2 Rg7 39. Re1 Rh7 40. b5 Bd4+ 41. Kf1 Qh1+ 42. Qxh1 Rxh1+ 43. Ke2 Rxe1+ 44. Kxe1 axb5 45. cxb5 Bf6 46. Na5 Bc3+ 0-1

[Event "IIFL Wealth 4th Mumbai Open"]
[Site "Mumbai"]
[Date "2019.01.01"]
[Round "3"]
[White "Anurag, Panigrahi"]
[Black "Kohad Dipesh"]
[Result "0-1"]
[ECO "C11"]
[WhiteElo "1315"]
[BlackElo "1683"]
[Annotator "NA RC"]
[PlyCount "84"]
[EventDate "2018.12.30"]
[EventType "swiss"]
[EventCountry "IND"]
[SourceTitle "playchess.com"]
[Source "ChessBase"]
[SourceQuality "1"]
[TimeControl "40/5400+30:1800+30"]

1. e4 {[%emt 0:00:00]} e6 {[%emt 0:00:00]} 2. d4 {[%emt 0:00:00]} d5 {[%emt 0:00:00]} 3. Nc3 {[%emt 0:00:17]} Nf6 {[%emt 0:00:00]} 4. e5 {[%emt 0:00:10]} Nfd7 {[%emt 0:00:00]} 5. f4 {[%emt 0:00:14]} c5 {[%emt 0:00:00]} 6. Nf3 {[%emt 0:00:10]} Nc6 {[%emt 0:00:00]} 7. Be3 {[%emt 0:00:13]} a6 {[%emt 0:01:42]} 8. Qd2 {[%emt 0:00:21]} b5 {[%emt 0:09:45]} 9. dxc5 {[%emt 0:00:15]} Bxc5 {[%emt 0:01:13]} 10. Bd3 {[%emt 0:00:33]} d4 {[%emt 0:04:55]} 11. Nxd4 {[%emt 0:02:33]} Nxd4 {[%emt 0:18:08]} 12. Be4 {[%emt 0:00:58]} Nb6 {[%emt 0:00:07]} 13. Bxd4 {[%emt 0:24:47]} Qxd4 {[%emt 0:04:15]} 14. Bxa8 {[%emt 0:23:34]} Nxa8 {[%emt 0:07:18]} 15. Qxd4 {[%emt 0:12:08]} Bxd4 {[%emt 0:00:48]} 16. Rd1 {[%emt 0:04:09]} Bxc3+ {[%emt 0:03:43]} 17. bxc3 {[%emt 0:00:04]} Nb6 {[%emt 0:00:08]} 18. O-O {[%emt 0:00:28]} O-O {[%emt 0:00:17]} 19. Rd3 {[%emt 0:01:00]} Nc4 {[%emt 0:00:16]} 20. Rg3 {[%emt 0:01:15]} g6 {[%emt 0:04:51]} 21. Rd3 {[%emt 0:01:29]} Bb7 {[%emt 0:02:13]} 22. Rd4 {[%emt 0:02:03]} Bd5 {[%emt 0:01:26]} 23. Kf2 {[%emt 0:03:24]} Rc8 {[%emt 0:01:16]} 24. Rc1 {[%emt 0:01:28]} Nb2 {[%emt 0:02:16]} 25. Rb1 {[%emt 0:03:08]} Na4 {[%emt 0:00:38]} 26. Rd3 {[%emt 0:00:42]} Nxc3 {[%emt 0:00:41]} 27. Rb2 {[%emt 0:00:13]} Na4 {[%emt 0:00:13]} 28. Rb1 {[%emt 0:00:57]} Rxc2+ {[%emt 0:00:48]} 29. Kf1 {[%emt 0:00:12]} Bxg2+ {[%emt 0:00:15]} 30. Kg1 {[%emt 0:00:18]} Bd5 {[%emt 0:00:13]} 31. h3 {[%emt 0:00:09]} Rg2+ {[%emt 0:00:34]} 32. Kf1 {[%emt 0:00:14]} Rh2 {[%emt 0:00:10]} 33. Rbd1 {[%emt 0:01:01]} Rxa2 {[%emt 0:01:36]} 34. R3d2 {[%emt 0:00:31]} Rxd2 {[%emt 0:01:23]} 35. Rxd2 {[%emt 0:00:08]} Nb6 {[%emt 0:00:33]} 36. Rd1 {[%emt 0:00:29]} a5 {[%emt 0:00:09]} 37. Ra1 {[%emt 0:00:06]} a4 {[%emt 0:00:03]} 38. Ke2 {[%emt 0:00:11]} b4 {[%emt 0:00:37]} 39. Kd2 {[%emt 0:00:26]} a3 {[%emt 0:00:07]} 40. Kd3 {[%emt 0:00:00]} a2 {[%emt 0:00:00]} 41. Kc2 {[%emt 0:00:45]} b3+ {[%emt 0:00:19]} 42. Kb2 {[%emt 0:00:06]} Na4+ {[%emt 0:00:09]} 0-1